fUST/lending_fUST_20241205
["ID","MTS","AMOUNT","RATE_DAILY","PERIOD"]
[344374042,1733390081749,-500.0,0.00021917,2]
[344374043,1733390081758,-500.0,0.00021917,2]
[344374044,1733390081767,-500.0,0.00021917,2]
[344374045,1733390081776,-526.67133795,0.00021917,2]
[344374046,1733390081786,-490.53905682,0.00021917,2]
[344374047,1733390081795,-500.0,0.00021917,2]
[344374048,1733390081804,-500.0,0.00021917,2]
[344374049,1733390081814,-1226.69,0.00021917,2]
[344374050,1733390081825,-500.0,0.00021917,2]
[344374051,1733390081835,-502.00068077,0.00021917,2]
[344374052,1733390081844,-182.17003877,0.00021917,2]
[344374053,1733390081854,-500.0,0.00021917,2]
[344374054,1733390081863,-500.0,0.00021917,2]
[344374055,1733390081873,-500.0,0.00021917,2]
[344374056,1733390081883,-500.0,0.00021917,2]
[344374057,1733390081892,-654.27,0.00021917,2]
[344374058,1733390081902,-500.0,0.00021917,2]
[344374059,1733390081912,-500.0,0.00021917,2]
[344374060,1733390081921,-500.0,0.00021917,2]
[344374061,1733390081930,-500.0,0.00021917,2]
[344374062,1733390081940,-500.0,0.00021917,2]
[344374063,1733390081950,-151.125563,0.00021918,2]
[344374064,1733390081959,-400.0,0.00021971,2]
[344374065,1733390081969,-528.41710806,0.00021973,2]
[344374066,1733390081979,-259.89248991,0.00021973,2]
[344374067,1733390081990,-502.44275276,0.00021973,2]
[344374068,1733390082008,-500.0,0.00021973,2]
[344374069,1733390082018,-217.60459923,0.00021973,2]
[344374070,1733390082033,-500.0,0.00021973,2]
[344374071,1733390082044,-500.0,0.00021973,2]
[344374072,1733390082054,-266.65371498,0.00021973,2]
[344374073,1733390082064,-200.50035974,0.00021973,2]
[344374074,1733390082074,-632.75402473,0.00021973,2]
[344374075,1733390082085,-500.7194988,0.00021973,2]
[344374076,1733390082098,-334.26382218,0.00021973,2]
[344374077,1733390082108,-500.0,0.00021973,2]
[344374078,1733390082118,-490.6063454,0.00021973,2]
[344374079,1733390082132,-9.3936546,0.00021973,2]
[344374080,1733390082143,-500.0,0.00021973,2]
[344374081,1733390082153,-516.73571809,0.00021973,2]
[344374082,1733390082165,-151.0,0.00022,10]
[344374083,1733390082175,-151.0,0.00022,6]
[344374084,1733390082185,-363.0,0.00022,2]
[344374085,1733390082195,-203.0,0.00022,2]
[344374086,1733390082205,-157.0,0.00022,2]
[344374087,1733390082215,-9424.31834042,0.0002201,16]
[344374088,1733390082226,-151.0,0.0002201,7]
[344374089,1733390082236,-151.0,0.0002201,7]
[344374090,1733390082250,-186.522458,0.0002201,7]
[344374091,1733390082260,-186.522458,0.0002201,7]
[344374092,1733390082269,-151.0,0.0002201,7]
[344374093,1733390082280,-179.366684,0.00022012,2]
[344374094,1733390082289,-1195.96966325,0.00022091,2]
[344374095,1733390082300,-151.0,0.000221,5]
[344374096,1733390082370,-151.0,0.000221,8]
[344374097,1733390082381,-500.0,0.00022173,2]
[344374098,1733390082390,-500.0,0.00022173,2]
[344374099,1733390082399,-78.01721976,0.00022173,2]
[344374100,1733390082411,-421.98278024,0.00022173,2]
[344374101,1733390082421,-500.95874668,0.00022173,2]
[344374102,1733390082431,-273.02813634,0.00022173,2]
[344374103,1733390082450,-151.0,0.00022173,2]
[344374104,1733390082463,-75.97186366,0.00022173,2]
[344374105,1733390082474,-75.02813634,0.00022173,2]
[344374106,1733390082485,-184.62432095,0.00022173,2]
[344374107,1733390082504,-240.34754271,0.00022173,2]
[344374108,1733390082514,-259.65245729,0.00022173,2]
[344374109,1733390082527,-63.48876403,0.00022173,2]
[344374110,1733390082537,-134.78596072,0.00022173,2]
[344374111,1733390082549,-194.46541961,0.00022173,2]
[344374112,1733390082561,-171.04816398,0.00022173,2]
[344374113,1733390082570,-94.25056101,0.0002219,2]
[344374114,1733390082582,-65.74943899,0.0002219,2]
[344374115,1733390082591,-84.26056101,0.00022191,7]
[344374116,1733390082603,-66.73943899,0.00022191,7]
[344374117,1733390082613,-151.0,0.00022191,7]
[344374118,1733390082622,-217.853522,0.00022191,7]
[344374119,1733390082632,-151.0,0.00022191,7]
[344374120,1733390082642,-152.122254,0.00022191,7]
[344374121,1733390082651,-151.0,0.00022191,7]
[344374122,1733390082661,-151.0,0.00022191,7]
[344374123,1733390082671,-151.0,0.00022191,7]
[344374124,1733390082680,-154.327259,0.00022191,7]
[344374125,1733390082690,-154.327259,0.00022191,7]
[344374126,1733390082699,-154.327259,0.00022191,7]
[344374127,1733390082709,-154.327259,0.00022191,7]
[344374128,1733390082718,-154.327259,0.00022191,7]
[344374129,1733390082728,-154.327259,0.00022191,7]
[344374130,1733390082738,-154.327259,0.00022191,7]
[344374131,1733390082748,-154.327259,0.00022191,7]
[344374132,1733390082758,-502.77895353,0.00022191,2]
[344374133,1733390082767,-502.77072055,0.00022191,2]
[344374134,1733390082776,-502.69030261,0.00022191,2]
[344374135,1733390082786,-320.7271181,0.00022191,2]
[344374136,1733390082798,-182.47067344,0.00022191,2]
[344374137,1733390082808,-261.178909,0.00022191,7]
[344374138,1733390082817,-56.35041756,0.00022191,7]
[344374139,1733390082829,-151.0,0.00022191,7]
[344374140,1733390082840,-53.82849144,0.00022191,7]
[344374141,1733390082850,-97.17150856,0.00022191,7]
[344374142,1733390082861,-154.327259,0.00022191,7]
[344374143,1733390082872,-9.68014144,0.00022191,7]
[344374144,1733390082882,-144.64711756,0.00022191,7]
[344374145,1733390082894,-116.53179144,0.00022191,7]
[344374146,1733390082904,-37.79546756,0.00022191,2]
[344374147,1733390082915,-154.327259,0.00022191,2]
[344374148,1733390082926,-151.0,0.00022191,2]
[344374149,1733390082938,-156.87727344,0.00022191,2]
[344374150,1733390082947,-61.22573656,0.00022191,2]
[344374151,1733390082959,-438.77426344,0.00022191,2]
[344374152,1733390082968,-61.22573656,0.00022191,2]
[344374153,1733390082980,-438.77426344,0.00022191,2]
[344374154,1733390082989,-63.99536237,0.00022191,2]
[344374155,1733390083003,-455.28528594,0.00022191,2]
[344374156,1733390083012,-44.71471406,0.00022191,2]
[344374157,1733390083024,-455.28528594,0.00022191,2]
[344374158,1733390083033,-44.71471406,0.00022191,2]
[344374159,1733390083045,-457.06552895,0.00022191,2]
[344374160,1733390083055,-42.93447105,0.00022191,2]
[344374161,1733390083067,-457.06552895,0.00022191,2]
[344374162,1733390083076,-91.34838966,0.00022191,2]
[344374163,1733390083093,-408.65161034,0.00022191,2]
[344374164,1733390083104,-91.34838966,0.00022191,2]
[344374165,1733390083116,-329.81408285,0.00022191,2]
[344374166,1733390083127,-172.41293862,0.00022191,2]
[344374167,1733390083138,-327.58706138,0.00022191,2]
[344374168,1733390083148,-241.98358928,0.00022191,2]
[344374169,1733390083159,-151.0,0.00022191,2]
[344374170,1733390083170,-107.01641072,0.00022191,2]
[344374171,1733390083180,-43.98358928,0.00022191,2]
[344374172,1733390083192,-151.0,0.00022191,2]
[344374173,1733390083203,-155.127811,0.00022191,2]
[344374174,1733390083214,-149.88859972,0.00022191,2]
[344374175,1733390083224,-111.29030928,0.00022191,2]
[344374176,1733390083234,-261.178909,0.00022191,2]
[344374177,1733390083247,-127.53078172,0.00022191,2]
[344374178,1733390083256,-133.64812728,0.00022191,2]
[344374179,1733390083267,-261.178909,0.00022191,2]
[344374180,1733390083279,-105.17296372,0.00022191,2]
[344374181,1733390083341,-156.00594528,0.00022191,2]
[344374182,1733390083353,-261.178909,0.00022191,2]
[344374183,1733390083363,-82.81514572,0.00022191,2]
[344374184,1733390083373,-178.36376328,0.00022191,2]
[344374185,1733390083383,-261.178909,0.00022191,2]
[344374186,1733390083395,-60.45732772,0.00022191,2]
[344374187,1733390083403,-200.72158128,0.00022191,2]
[344374188,1733390083415,-261.178909,0.00022191,2]
[344374189,1733390083425,-38.09950972,0.00022191,2]
[344374190,1733390083434,-223.07939928,0.00022191,2]
[344374191,1733390083445,-261.178909,0.00022191,2]
[344374192,1733390083456,-21.86411188,0.00022191,2]
[344374193,1733390083466,-239.31479712,0.00022191,2]
[344374194,1733390083476,-261.178909,0.00022191,2]
[344374195,1733390083488,-15.191883,0.00022191,2]
[344374196,1733390083498,-245.987026,0.00022191,2]
[344374197,1733390083509,-83.89563463,0.00022191,2]
[344374198,1733390083519,-177.28327437,0.00022191,2]
[344374199,1733390083531,-322.71672563,0.00022191,2]
[344374200,1733390083540,-186.61946838,0.00022191,2]
[344374201,1733390083551,-313.38053162,0.00022191,2]
[344374202,1733390083560,-151.0,0.00022191,7]
[344374203,1733390083570,-44.82654049,0.00022191,7]
[344374204,1733390083581,-106.17345951,0.00022191,7]
[344374205,1733390083591,-397.57291452,0.00022191,2]
[344374206,1733390083601,-41.00337731,0.00022191,2]
[344374207,1733390083610,-458.99662269,0.00022191,2]
[344374208,1733390083622,-41.00337731,0.00022191,2]
[344374209,1733390083631,-458.99662269,0.00022191,2]
[344374210,1733390083642,-42.22957716,0.00022191,2]
[344374211,1733390083651,-182.29746,0.00022191,7]
[344374212,1733390083660,-182.29746,0.00022191,7]
[344374213,1733390083669,-93.17550284,0.00022191,7]
[344374214,1733390083680,-89.12195716,0.00022191,7]
[344374215,1733390083689,-182.297468,0.00022191,7]
[344374216,1733390083698,-228.58057484,0.00022191,2]
[344374217,1733390083709,-271.41942516,0.00022191,2]
[344374218,1733390083719,-228.58057484,0.00022191,2]
[344374219,1733390083730,-271.41942516,0.00022191,2]
[344374220,1733390083739,-228.58057484,0.00022191,2]
[344374221,1733390083752,-271.41942516,0.00022191,2]
[344374222,1733390083761,-228.58057484,0.00022191,2]
[344374223,1733390083772,-271.41942516,0.00022191,2]
[344374224,1733390083781,-246.34405684,0.00022191,2]
[344374225,1733390083793,-253.65594316,0.00022191,2]
[344374226,1733390083802,-246.34405684,0.00022191,2]
[344374227,1733390083814,-253.65594316,0.00022191,2]
[344374228,1733390083824,-246.34405684,0.00022191,2]
[344374229,1733390083836,-253.65594316,0.00022191,2]
[344374230,1733390083845,-253.10558691,0.00022191,2]
[344374231,1733390083856,-258.59875603,0.00022191,2]
[344374232,1733390083866,-243.34781111,0.00022191,2]
[344374233,1733390083878,-256.65218889,0.00022191,2]
[344374234,1733390083888,-243.34781111,0.00022191,2]
[344374235,1733390083899,-271.34953002,0.00022191,2]
[344374236,1733390083909,-248.83279577,0.00022191,10]
[344374237,1733390083920,-500.0,0.00022191,10]
[344374238,1733390083935,-251.16720423,0.00022191,10]
[344374239,1733390083945,-200.0,0.00022191,2]
[344374240,1733390083954,-52.09290542,0.00022191,2]
[344374241,1733390083966,-489.23181397,0.00022191,2]
[344374242,1733390083975,-10.76818603,0.00022191,2]
[344374243,1733390083986,-484.84536447,0.00022191,2]
[344374244,1733390083997,-15.15463553,0.00022191,2]
[344374245,1733390084008,-160.23731872,0.00022191,2]
[344374246,1733390084019,-324.60804575,0.00022191,2]
[344374247,1733390084029,-179.83096639,0.00022191,2]
[344374248,1733390084040,-320.16903361,0.00022191,2]
[344374249,1733390084049,-179.83096639,0.00022191,2]
[344374250,1733390084060,-320.16903361,0.00022191,2]
[344374251,1733390084069,-179.83096639,0.00022191,2]
[344374252,1733390084082,-221.568273,0.00022191,2]
[344374253,1733390084094,-98.60076061,0.00022191,2]
[344374254,1733390084104,-403.66991593,0.00022191,2]
[344374255,1733390084115,-96.33008407,0.00022191,2]
[344374256,1733390084126,-403.66991593,0.00022191,2]
[344374257,1733390084137,-96.33008407,0.00022191,2]
[344374258,1733390084146,-403.66991593,0.00022191,2]
[344374259,1733390084163,-96.33008407,0.00022191,2]
[344374260,1733390084172,-403.66991593,0.00022191,2]
[344374261,1733390084184,-96.33008407,0.00022191,2]
[344374262,1733390084247,-429.57950855,0.00022191,2]
[344374263,1733390084258,-139.3436861,0.00022191,2]
[344374264,1733390084267,-80.46786968,0.00022191,2]
[344374265,1733390084279,-419.53213032,0.00022191,2]
[344374266,1733390084287,-88.79819382,0.00022191,2]
[344374267,1733390084299,-354.18363802,0.00022191,2]
[344374268,1733390084309,-59.56065714,0.00022191,2]
[344374269,1733390084318,-440.43934286,0.00022191,2]
[344374270,1733390084329,-59.56065714,0.00022191,2]
[344374271,1733390084339,-91.43934286,0.00022191,2]
[344374272,1733390084349,-151.0,0.00022191,2]
[344374273,1733390084360,-151.0,0.00022191,2]
[344374274,1733390084371,-106.56065714,0.00022191,2]
[344374275,1733390084380,-44.43934286,0.00022191,2]
[344374276,1733390084391,-151.0,0.00022191,2]
[344374277,1733390084402,-304.56065714,0.00022191,2]
[344374278,1733390084411,-195.43934286,0.00022191,2]
[344374279,1733390084423,-151.0,0.00022191,2]
[344374280,1733390084434,-153.56065714,0.00022191,2]
[344374281,1733390084444,-256.06984761,0.00022191,2]
[344374282,1733390084453,-90.36949525,0.00022191,2]
[344374283,1733390084464,-151.0,0.00022191,2]
[344374284,1733390084475,-151.0,0.00022191,2]
[344374285,1733390084487,-107.63050475,0.00022191,2]
[344374286,1733390084498,-392.36949525,0.00022191,2]
[344374287,1733390084509,-107.63050475,0.00022191,2]
[344374288,1733390084518,-43.36949525,0.00022191,2]
[344374289,1733390084529,-151.0,0.00022191,2]
[344374290,1733390084540,-151.0,0.00022191,2]
[344374291,1733390084553,-151.0,0.00022191,2]
[344374292,1733390084565,-3.63050475,0.00022191,2]
[344374293,1733390084574,-147.36949525,0.00022191,2]
[344374294,1733390084585,-151.0,0.00022191,2]
[344374295,1733390084596,-201.63050475,0.00022191,2]
[344374296,1733390084605,-63.33417725,0.00022191,2]
[344374297,1733390084616,-452.80059734,0.00022191,2]
[344374298,1733390084625,-47.19940266,0.00022191,2]
[344374299,1733390084636,-182.29746,0.00022191,2]
[344374300,1733390084650,-182.29746,0.00022191,2]
[344374301,1733390084674,-88.20567734,0.00022191,2]
[344374302,1733390084690,-94.09178266,0.00022191,2]
[344374303,1733390084713,-182.29746,0.00022191,2]
[344374304,1733390084736,-182.29746,0.00022191,2]
[344374305,1733390084757,-41.31329734,0.00022191,2]
[344374306,1733390084775,-458.68670266,0.00022191,2]
[344374307,1733390084795,-41.31329734,0.00022191,2]
[344374308,1733390084812,-458.68670266,0.00022191,2]
[344374309,1733390084835,-41.31329734,0.00022191,2]
[344374310,1733390084852,-140.98416266,0.00022191,2]
[344374311,1733390084869,-182.29746,0.00022191,2]
[344374312,1733390084889,-176.71837734,0.00022191,2]
[344374313,1733390084905,-5.57908266,0.00022191,2]
[344374314,1733390084922,-182.29746,0.00022191,2]
[344374315,1733390084940,-182.29746,0.00022191,2]
[344374316,1733390084958,-129.82599734,0.00022191,2]
[344374317,1733390084973,-52.47146266,0.00022191,2]
[344374318,1733390084989,-182.29746,0.00022191,2]
[344374319,1733390085008,-182.29746,0.00022191,2]
[344374320,1733390085026,-82.93361734,0.00022191,2]
[344374321,1733390085041,-99.36384266,0.00022191,2]
[344374322,1733390085058,-182.29746,0.00022191,2]
[344374323,1733390085075,-182.29746,0.00022191,2]
[344374324,1733390085095,-36.04123734,0.00022191,2]
[344374325,1733390085110,-351.50669307,0.00022191,2]
[344374326,1733390085127,-368.99330693,0.00022191,2]
[344374327,1733390085141,-131.00669307,0.00022191,2]
[344374328,1733390085156,-369.9873853,0.00022191,2]
[344374329,1733390085166,-134.62796208,0.00022191,7]
[344374330,1733390085179,-152.04340092,0.00022191,7]
[344374331,1733390085189,-355.43539839,0.00022191,2]
[344374332,1733390085201,-144.56460161,0.00022191,2]
[344374333,1733390085211,-376.66253841,0.00022191,2]
[344374334,1733390085222,-123.33746159,0.00022191,2]
[344374335,1733390085231,-167.47182273,0.00022191,2]
[344374336,1733390085241,-209.19071568,0.00022191,2]
[344374337,1733390085254,-290.80928432,0.00022191,2]
[344374338,1733390085264,-209.19071568,0.00022191,2]
[344374339,1733390085406,-290.80928432,0.00022191,2]
[344374340,1733390085424,-209.19071568,0.00022191,2]
[344374341,1733390085435,-290.80928432,0.00022191,2]
[344374342,1733390085445,-209.19071568,0.00022191,2]
[344374343,1733390085456,-151.0,0.00022191,2]
[344374344,1733390085467,-139.80928432,0.00022191,2]
[344374345,1733390085476,-78.74149268,0.00022191,2]
[344374346,1733390085488,-421.25850732,0.00022191,2]
[344374347,1733390085499,-222.09885561,0.00022191,2]
[344374348,1733390085511,-277.90114439,0.00022191,2]
[344374349,1733390085520,-222.09885561,0.00022191,2]
[344374350,1733390085531,-277.90114439,0.00022191,2]
[344374351,1733390085541,-222.09885561,0.00022191,2]
[344374352,1733390085552,-277.90114439,0.00022191,2]
[344374353,1733390085561,-222.09885561,0.00022191,2]
[344374354,1733390085572,-277.90114439,0.00022191,2]
[344374355,1733390085581,-222.09885561,0.00022191,2]
[344374356,1733390085593,-277.90114439,0.00022191,2]
[344374357,1733390085602,-222.09885561,0.00022191,2]
[344374358,1733390085613,-281.35139891,0.00022191,2]
[344374359,1733390085622,-500.0,0.00022191,2]
[344374360,1733390085631,-221.63446387,0.00022191,2]
[344374361,1733390085642,-278.36553613,0.00022191,2]
[344374362,1733390085652,-224.16970959,0.00022191,2]
[344374363,1733390085663,-279.36187674,0.00022191,2]
[344374364,1733390085672,-220.63812326,0.00022191,2]
[344374365,1733390085683,-395.49187674,0.00022191,2]
[344374366,1733390085693,-107.58563649,0.00022191,2]
[344374367,1733390085704,-392.41436351,0.00022191,2]
[344374368,1733390085713,-500.0,0.00022191,2]
[344374369,1733390085722,-107.58563649,0.00022191,2]
[344374370,1733390085734,-299.3331692,0.00022191,2]
[344374371,1733390085746,-93.08119431,0.00022191,2]
[344374372,1733390085755,-409.66349347,0.00022191,2]
[344374373,1733390085766,-90.33650653,0.00022191,2]
[344374374,1733390085775,-109.66349347,0.00022191,2]
[344374375,1733390085786,-483.71883395,0.00022191,2]
[344374376,1733390085795,-23.1973649,0.00022191,2]
[344374377,1733390085807,-476.8026351,0.00022191,2]
[344374378,1733390085816,-23.1973649,0.00022191,2]
[344374379,1733390085827,-476.8026351,0.00022191,2]
[344374380,1733390085837,-23.1973649,0.00022191,2]
[344374381,1733390085848,-476.8026351,0.00022191,2]
[344374382,1733390085857,-23.1973649,0.00022191,7]
[344374383,1733390085869,-163.3250931,0.00022191,7]
[344374384,1733390085878,-186.522458,0.00022191,7]
[344374385,1733390085887,-150.1524489,0.00022191,2]
[344374386,1733390085899,-349.8475511,0.00022191,2]
[344374387,1733390085908,-150.1524489,0.00022191,2]
[344374388,1733390085924,-349.8475511,0.00022191,2]
[344374389,1733390085933,-150.1524489,0.00022191,7]
[344374390,1733390085945,-36.3700091,0.00022191,7]
[344374391,1733390085954,-473.38823782,0.00022191,2]
[344374392,1733390085966,-26.61176218,0.00022191,2]
[344374393,1733390085975,-186.522456,0.00022191,7]
[344374394,1733390085984,-151.0,0.00022191,7]
[344374395,1733390085994,-135.86578182,0.00022191,7]
[344374396,1733390086006,-15.13421818,0.00022191,7]
[344374397,1733390086016,-484.86578182,0.00022191,2]
[344374398,1733390086027,-15.13421818,0.00022191,2]
[344374399,1733390086037,-484.86578182,0.00022191,2]
[344374400,1733390086048,-15.13421818,0.00022191,2]
[344374401,1733390086058,-488.65351562,0.00022191,2]
[344374402,1733390086070,-19.45672443,0.00022191,2]
[344374403,1733390086083,-480.54327557,0.00022191,2]
[344374404,1733390086098,-23.24835756,0.00022191,2]
[344374405,1733390086107,-355.58213851,0.00022191,2]
[344374406,1733390086118,-121.16950393,0.00022191,2]
[344374407,1733390086131,-378.83049607,0.00022191,2]
[344374408,1733390086140,-121.16950393,0.00022191,2]
[344374409,1733390086151,-384.92247786,0.00022191,2]
[344374410,1733390086162,-115.07752214,0.00022191,2]
[344374411,1733390086173,-436.83247786,0.00022191,2]
[344374412,1733390086182,-63.16752214,0.00022191,2]
[344374413,1733390086194,-500.0,0.00022191,2]
[344374414,1733390086205,-25.93112367,0.00022191,2]
[344374415,1733390086215,-409.00614814,0.00022191,2]
[344374416,1733390086224,-65.06272819,0.00022191,2]
[344374417,1733390086236,-434.93727181,0.00022191,2]
[344374418,1733390086245,-65.06272819,0.00022191,2]
[344374419,1733390086258,-434.93727181,0.00022191,2]
[344374420,1733390086267,-65.06272819,0.00022191,2]
[344374421,1733390086278,-434.93727181,0.00022191,2]
[344374422,1733390086287,-65.06272819,0.00022191,2]
[344374423,1733390086299,-434.93727181,0.00022191,2]
[344374424,1733390086308,-76.55178219,0.00022191,2]
[344374425,1733390086319,-423.44821781,0.00022191,2]
[344374426,1733390086328,-76.55178219,0.00022191,2]
[344374427,1733390086340,-423.44821781,0.00022191,2]
[344374428,1733390086349,-76.55178219,0.00022191,2]
[344374429,1733390086361,-263.21503756,0.00022191,2]
[344374430,1733390086373,-160.23318025,0.00022191,2]
[344374431,1733390086383,-339.76681975,0.00022191,2]
[344374432,1733390086396,-160.23318025,0.00022191,2]
[344374433,1733390086405,-339.76681975,0.00022191,2]
[344374434,1733390086416,-160.23318025,0.00022191,2]
[344374435,1733390086426,-339.76681975,0.00022191,2]
[344374436,1733390086438,-160.23318025,0.00022191,2]
[344374437,1733390086447,-347.76292685,0.00022191,2]
[344374438,1733390086459,-152.23707315,0.00022191,2]
[344374439,1733390086468,-5.82323685,0.00022191,2]
[344374440,1733390086479,-494.17676315,0.00022191,2]
[344374441,1733390086489,-5.82323685,0.00022191,2]
[344374442,1733390086502,-493.98303591,0.00022191,2]
[344374443,1733390086512,-6.01696409,0.00022191,2]
[344374444,1733390086523,-493.98303591,0.00022191,2]
[344374445,1733390086532,-6.01696409,0.00022191,2]
[344374446,1733390086543,-493.98303591,0.00022191,2]
[344374447,1733390086552,-6.01696409,0.00022191,2]
[344374448,1733390086564,-415.13705687,0.00022191,2]
[344374449,1733390086573,-84.86294313,0.00022191,2]
[344374450,1733390086585,-415.13705687,0.00022191,2]
[344374451,1733390086595,-84.86294313,0.00022191,2]
[344374452,1733390086606,-415.13705687,0.00022191,2]
[344374453,1733390086615,-84.86294313,0.00022191,2]
[344374454,1733390086627,-424.00249857,0.00022191,2]
[344374455,1733390086636,-75.99750143,0.00022191,2]
[344374456,1733390086647,-424.00249857,0.00022191,2]
[344374457,1733390086656,-81.9433459,0.00022191,2]
[344374458,1733390086668,-418.0566541,0.00022191,2]
[344374459,1733390086677,-7.69186872,0.00022191,2]
[344374460,1733390086690,-492.30813128,0.00022191,2]
[344374461,1733390086700,-83.26476991,0.00022191,2]
[344374462,1733390086712,-416.73523009,0.00022191,2]
[344374463,1733390086721,-83.26476991,0.00022191,2]
[344374464,1733390086733,-416.73523009,0.00022191,2]
[344374465,1733390086742,-142.81743098,0.00022191,2]
[344374466,1733390086755,-357.18256902,0.00022191,2]
[344374467,1733390086764,-142.81743098,0.00022191,2]
[344374468,1733390086776,-357.18256902,0.00022191,2]
[344374469,1733390086785,-142.81743098,0.00022191,2]
[344374470,1733390086796,-357.18256902,0.00022191,2]
[344374471,1733390086805,-363.31743098,0.00022191,2]
[344374472,1733390086816,-136.68256902,0.00022191,2]
[344374473,1733390086825,-363.31743098,0.00022191,2]
[344374474,1733390086836,-151.0,0.00022191,2]
[344374475,1733390086848,-29.15531815,0.00022191,2]
[344374476,1733390086857,-121.84468185,0.00022191,2]
[344374477,1733390086872,-151.0,0.00022191,2]
[344374478,1733390086883,-151.0,0.00022191,2]
[344374479,1733390086895,-88.736627,0.00022191,2]
[344374480,1733390086904,-62.263373,0.00022191,2]
[344374481,1733390086919,-211.53439939,0.00022191,2]
[344374482,1733390086929,-312.22810757,0.00022191,2]
[344374483,1733390086940,-151.0,0.00022191,2]
[344374484,1733390086952,-36.77189243,0.00022191,2]
[344374485,1733390086961,-114.22810757,0.00022191,2]
[344374486,1733390086972,-385.77189243,0.00022191,2]
[344374487,1733390086982,-114.22810757,0.00022191,2]
[344374488,1733390086993,-403.45145101,0.00022191,2]
[344374489,1733390087004,-96.54854899,0.00022191,2]
[344374490,1733390087015,-410.4288855,0.00022191,2]
[344374491,1733390087025,-89.5711145,0.00022191,2]
[344374492,1733390087036,-410.4288855,0.00022191,2]
[344374493,1733390087045,-89.5711145,0.00022191,2]
[344374494,1733390087056,-500.0,0.00022191,2]
[344374495,1733390087068,-34.19639599,0.00022191,2]
[344374496,1733390087078,-469.96641202,0.00022191,2]
[344374497,1733390087094,-30.03358798,0.00022191,2]
[344374498,1733390087104,-469.96641202,0.00022191,2]
[344374499,1733390087115,-30.03358798,0.00022191,2]
[344374500,1733390087125,-469.96641202,0.00022191,2]
[344374501,1733390087136,-30.03358798,0.00022191,2]
[344374502,1733390087145,-469.96641202,0.00022191,2]
[344374503,1733390087157,-145.67854489,0.00022191,2]
[344374504,1733390087167,-354.32145511,0.00022191,2]
[344374505,1733390087179,-145.67854489,0.00022191,2]
[344374506,1733390087189,-5.32145511,0.00022191,2]
[344374507,1733390087200,-151.0,0.00022191,2]
[344374508,1733390087211,-343.67854489,0.00022191,2]
[344374509,1733390087220,-156.32145511,0.00022191,2]
[344374510,1733390087231,-151.0,0.00022191,2]
[344374511,1733390087243,-192.67854489,0.00022191,2]
[344374512,1733390087254,-307.32145511,0.00022191,2]
[344374513,1733390087265,-192.67854489,0.00022191,2]
[344374514,1733390087274,-318.37430189,0.00022191,2]
[344374515,1733390087285,-181.62569811,0.00022191,2]
[344374516,1733390087294,-318.37430189,0.00022191,2]
[344374517,1733390087305,-181.62569811,0.00022191,2]
[344374518,1733390087315,-318.37430189,0.00022191,2]
[344374519,1733390087400,-181.62569811,0.00022191,2]
[344374520,1733390087409,-318.37430189,0.00022191,2]
[344374521,1733390087420,-181.62569811,0.00022191,2]
[344374522,1733390087429,-318.37430189,0.00022191,2]
[344374523,1733390087440,-181.62569811,0.00022191,2]
[344374524,1733390087449,-318.37430189,0.00022191,2]
[344374525,1733390087460,-181.62569811,0.00022191,2]
[344374526,1733390087469,-318.37430189,0.00022191,2]
[344374527,1733390087481,-214.83846877,0.00022191,2]
[344374528,1733390087491,-401.29153123,0.00022191,2]
[344374529,1733390087504,-98.70846877,0.00022191,2]
[344374530,1733390087513,-401.29153123,0.00022191,2]
[344374531,1733390087525,-98.70846877,0.00022191,2]
[344374532,1733390087534,-401.29153123,0.00022191,2]
[344374533,1733390087545,-98.70846877,0.00022191,2]
[344374534,1733390087554,-243.69002894,0.00022191,2]
[344374535,1733390087563,-169.06391075,0.00022191,2]
[344374536,1733390087574,-392.75431018,0.00022191,2]
[344374537,1733390087583,-118.10257131,0.00022191,2]
[344374538,1733390087595,-381.89742869,0.00022191,2]
[344374539,1733390087604,-118.10257131,0.00022191,2]
[344374540,1733390087639,-500.0,0.00022191,2]
[344374541,1733390087651,-127.75742869,0.00022191,2]